fUSD/lending_fUSD_20250530
["ID","MTS","AMOUNT","RATE_DAILY","PERIOD"]
[363181923,1748616658731,-549.42797474,0.00021918,2]
[363181924,1748616658741,-549.42797474,0.00021918,2]
[363181925,1748616658751,-549.42797474,0.00021918,2]
[363181926,1748616658761,-549.42797474,0.00021918,2]
[363181927,1748616658771,-549.42797474,0.00021918,2]
[363181928,1748616658781,-549.42797474,0.00021918,2]
[363181929,1748616658791,-549.42797474,0.00021918,2]
[363181930,1748616658801,-549.42797474,0.00021918,2]
[363181931,1748616658811,-549.42797474,0.00021918,2]
[363181932,1748616658819,-549.42797474,0.00021918,2]
[363181933,1748616658829,-549.42797474,0.00021918,2]
[363181934,1748616658839,-549.42797474,0.00021918,2]
[363181935,1748616658849,-549.42797474,0.00021918,2]
[363181936,1748616658859,-549.42797474,0.00021918,2]
[363181937,1748616658869,-549.42797474,0.00021918,2]
[363181938,1748616658878,-549.42797474,0.00021918,2]
[363181939,1748616658889,-549.42797474,0.00021918,2]
[363181940,1748616658900,-549.42797474,0.00021918,2]
[363181941,1748616658910,-549.42797474,0.00021918,2]
[363181942,1748616658920,-549.42797474,0.00021918,2]
[363181943,1748616658932,-549.42797474,0.00021918,2]
[363181944,1748616658942,-549.42797474,0.00021918,2]
[363181945,1748616658953,-549.42797474,0.00021918,2]
[363181946,1748616658963,-549.42797474,0.00021918,2]
[363181947,1748616658973,-549.42797474,0.00021918,2]
[363181948,1748616658984,-549.42797474,0.00021918,2]
[363181949,1748616658995,-549.42797474,0.00021918,2]
[363181950,1748616659005,-549.42797474,0.00021918,2]
[363181951,1748616659015,-549.42797474,0.00021918,2]
[363181952,1748616659025,-549.42797474,0.00021918,2]
[363181953,1748616659037,-549.42797474,0.00021918,2]
[363181954,1748616659047,-549.42797472,0.00021918,2]
[363181955,1748616659056,-549.42797472,0.00021918,2]
[363181956,1748616659066,-549.42797472,0.00021918,2]
[363181957,1748616659077,-549.42797472,0.00021918,2]
[363181958,1748616659087,-549.42797472,0.00021918,2]
[363181959,1748616659098,-549.42797472,0.00021918,2]
[363181960,1748616659108,-549.42797472,0.00021918,2]
[363181961,1748616659117,-549.42797468,0.00021918,2]
[363181962,1748616659128,-751.33363957,0.00021918,2]
[363181963,1748616659137,-166.0,0.00021939,2]
[363181964,1748616659147,-1000.0,0.00021947,7]
[363181965,1748616659157,-1000.0,0.00021947,7]
[363181966,1748616659167,-1000.0,0.00021947,7]
[363181967,1748616659179,-1000.0,0.00021947,7]
[363181968,1748616659188,-1000.0,0.00021947,7]
[363181969,1748616659198,-1000.0,0.00021947,7]
[363181970,1748616659208,-1000.0,0.00021947,7]
[363181971,1748616659218,-1000.0,0.00021947,7]
[363181972,1748616659228,-1000.0,0.00021947,7]
[363181973,1748616659237,-1000.0,0.00021947,7]
[363181974,1748616659247,-1000.0,0.00021947,2]
[363181975,1748616659257,-1000.0,0.00021947,2]
[363181976,1748616659266,-1000.0,0.00021947,2]
[363181977,1748616659276,-1000.0,0.00021947,2]
[363181978,1748616659286,-1000.0,0.00021947,2]
[363181979,1748616659296,-1000.0,0.00021947,2]
[363181980,1748616659305,-1000.0,0.00021947,2]
[363181981,1748616659314,-1000.0,0.00021947,2]
[363181982,1748616659324,-1000.0,0.00021947,2]
[363181983,1748616659334,-151.0,0.00021947,7]
[363181984,1748616659344,-762.593395,0.00021947,7]
[363181985,1748616659353,-762.593395,0.00021947,7]
[363181986,1748616659363,-151.0,0.00021947,7]
[363181987,1748616659373,-245.93375,0.00021947,7]
[363181988,1748616659382,-151.0,0.00021947,7]
[363181989,1748616659393,-151.0,0.00021947,7]
[363181990,1748616659403,-151.0,0.00021947,7]
[363181991,1748616659412,-151.0,0.00021947,7]
[363181992,1748616659422,-152.08440187,0.00021951,2]
[363181993,1748616659433,-546.95711903,0.00021973,2]
[363181994,1748616659443,-500.0,0.00021973,2]
[363181995,1748616659452,-500.0,0.00021973,2]
[363181996,1748616659462,-500.0,0.00021973,2]
[363181997,1748616659472,-500.0,0.00021973,2]
[363181998,1748616659482,-500.0,0.00021973,2]
[363181999,1748616659494,-500.0,0.00021973,2]
[363182000,1748616659504,-515.46143268,0.00021973,2]
[363182001,1748616659514,-500.0,0.00021973,2]
[363182002,1748616659524,-9509.33,0.00022,7]
[363182003,1748616659534,-261038.46,0.00022,7]
[363182004,1748616659544,-6031.0,0.00022,2]
[363182005,1748616659553,-248.46843206,0.00022,2]
[363182006,1748616659563,-500.0,0.00022,2]
[363182007,1748616659573,-151.0,0.00022,7]
[363182008,1748616659583,-151.0,0.00022,7]
[363182009,1748616659594,-322.87149,0.00022,7]
[363182010,1748616659604,-151.0,0.00022,7]
[363182011,1748616659614,-151.0,0.00022,7]
[363182012,1748616659624,-151.0,0.00022,7]
[363182013,1748616659634,-155.355111,0.00022,7]
[363182014,1748616659644,-151.0,0.00022,7]
[363182015,1748616659654,-245.283705,0.00022,7]
[363182016,1748616659663,-245.283705,0.00022,7]
[363182017,1748616659675,-151.0,0.00022,7]
[363182018,1748616659685,-151.0,0.00022,7]
[363182019,1748616659695,-151.0,0.00022,7]
[363182020,1748616659704,-151.0,0.00022,7]
[363182021,1748616659714,-151.0,0.00022,7]
[363182022,1748616659723,-300.284296,0.00022,7]
[363182023,1748616659733,-921.148434,0.00022,7]
[363182024,1748616659743,-151.0,0.00022,7]
[363182025,1748616659752,-151.0,0.00022,7]
[363182026,1748616659761,-964.182631,0.00022,7]
[363182027,1748616659771,-964.182631,0.00022,7]
[363182028,1748616659780,-222.98908,0.00022,7]
[363182029,1748616659789,-222.98908,0.00022,7]
[363182030,1748616659798,-151.0,0.00022,7]
[363182031,1748616659807,-163.304967,0.00022,7]
[363182032,1748616659817,-163.304967,0.00022,7]
[363182033,1748616659826,-151.0,0.00022,7]
[363182034,1748616659835,-1716.620633,0.00022,7]
[363182035,1748616659845,-1716.620633,0.00022,7]
[363182036,1748616659854,-151.0,0.00022,7]
[363182037,1748616659864,-151.0,0.00022,7]
[363182038,1748616659873,-151.0,0.00022,7]
[363182039,1748616659883,-151.0,0.00022,7]
[363182040,1748616659893,-151.0,0.00022,7]
[363182041,1748616659903,-166.0,0.00022,2]
[363182042,1748616659913,-235.0,0.00022,2]
[363182043,1748616659922,-151.0,0.00022,7]
[363182044,1748616659933,-151.0,0.00022,7]
[363182045,1748616659943,-151.0,0.00022,7]
[363182046,1748616659954,-2047.72415467,0.00022,2]
[363182047,1748616659964,-4984.658341,0.00022,7]
[363182048,1748616659974,-4984.658341,0.00022,7]
[363182049,1748616659983,-1000.0,0.00022006,7]
[363182050,1748616659993,-16390.75483254,0.00022091,2]
[363182051,1748616660004,-4317.39119492,0.00022107,6]
[363182052,1748616660013,-500.0,0.0002211,2]
[363182053,1748616660023,-4020.08224469,0.0002211,2]
[363182054,1748616660032,-232.8541541,0.0002211,2]
[363182055,1748616660044,-1201.24627178,0.0002217,2]
[363182056,1748616660055,-500.0,0.00022173,2]
[363182057,1748616660065,-500.0,0.00022173,2]
[363182058,1748616660075,-500.0,0.00022173,2]
[363182059,1748616660084,-500.0,0.00022173,2]
[363182060,1748616660094,-217.62485625,0.00022173,2]
[363182061,1748616660103,-500.0,0.00022173,2]
[363182062,1748616660112,-500.70476926,0.00022173,2]
[363182063,1748616660122,-500.0,0.00022173,2]
[363182064,1748616660132,-159.57199504,0.00022173,2]
[363182065,1748616660142,-359.05901085,0.00022173,2]
[363182066,1748616660152,-547.52718811,0.00022173,2]
[363182067,1748616660162,-500.0,0.00022173,2]
[363182068,1748616660172,-500.0,0.00022173,2]
[363182069,1748616660183,-500.0,0.00022173,2]
[363182070,1748616660192,-500.0,0.00022173,2]
[363182071,1748616660202,-500.0,0.00022173,2]
[363182072,1748616660212,-500.51754316,0.00022173,2]
[363182073,1748616660222,-500.0,0.00022173,2]
[363182074,1748616660232,-501.98633899,0.00022173,2]
[363182075,1748616660241,-500.0,0.00022173,2]
[363182076,1748616660251,-151.0,0.00022191,7]
[363182077,1748616660261,-151.0,0.00022191,7]
[363182078,1748616660271,-151.0,0.00022191,7]
[363182079,1748616660280,-151.0,0.00022191,7]
[363182080,1748616660289,-151.0,0.00022191,7]
[363182081,1748616660299,-322.87149,0.00022191,7]
[363182082,1748616660309,-322.87149,0.00022191,7]
[363182083,1748616660318,-420.0,0.00022191,2]
[363182084,1748616660327,-428.5469203,0.00022191,2]
[363182085,1748616660337,-420.0,0.00022191,2]
[363182086,1748616660347,-407.61155693,0.00022191,2]
[363182087,1748616660356,-223.608957,0.00022191,7]
[363182088,1748616660365,-521.75,0.00022191,2]
[363182089,1748616660375,-420.0,0.00022191,2]
[363182090,1748616660384,-420.0,0.00022191,2]
[363182091,1748616660393,-420.0,0.00022191,2]
[363182092,1748616660402,-420.0,0.00022191,2]
[363182093,1748616660412,-420.0,0.00022191,2]
[363182094,1748616660421,-420.0,0.00022191,2]
[363182095,1748616660434,-432.18671893,0.00022191,2]
[363182096,1748616660443,-420.0,0.00022191,2]
[363182097,1748616660452,-420.0,0.00022191,2]
[363182098,1748616660462,-420.0,0.00022191,2]
[363182099,1748616660471,-420.0,0.00022191,2]
[363182100,1748616660481,-420.0,0.00022191,2]
[363182101,1748616660490,-420.0,0.00022191,2]
[363182102,1748616660499,-420.0,0.00022191,2]
[363182103,1748616660509,-420.0,0.00022191,2]
[363182104,1748616660518,-420.0,0.00022191,2]
[363182105,1748616660527,-420.0,0.00022191,2]
[363182106,1748616660536,-157.47666776,0.00022191,2]
[363182107,1748616660546,-420.0,0.00022191,2]
[363182108,1748616660555,-420.0,0.00022191,2]
[363182109,1748616660564,-420.0,0.00022191,2]
[363182110,1748616660574,-420.0,0.00022191,2]
[363182111,1748616660582,-860.7,0.00022191,2]
[363182112,1748616660592,-420.0,0.00022191,2]
[363182113,1748616660601,-420.0,0.00022191,2]
[363182114,1748616660610,-357.0681211,0.00022191,2]
[363182115,1748616660619,-549.53,0.00022191,2]
[363182116,1748616660629,-170.51417373,0.00022191,2]
[363182117,1748616660638,-420.0,0.00022191,2]
[363182118,1748616660650,-530.64,0.00022191,2]
[363182119,1748616660853,-1000.0,0.00022191,2]
[363182120,1748616660864,-420.0,0.00022191,2]
[363182121,1748616660873,-420.0,0.00022191,2]
[363182122,1748616660882,-151.0,0.00022191,7]
[363182123,1748616660891,-151.0,0.00022191,7]
[363182124,1748616660901,-425.87540951,0.00022191,2]
[363182125,1748616660910,-420.0,0.00022191,2]
[363182126,1748616660919,-420.0,0.00022191,2]
[363182127,1748616660932,-150.50837219,0.00022191,2]
[363182128,1748616660943,-420.0,0.00022191,2]
[363182129,1748616660957,-449.74007292,0.00022191,2]
[363182130,1748616660967,-420.0,0.00022191,2]
[363182131,1748616660976,-451.33219594,0.00022191,2]
[363182132,1748616660985,-420.0,0.00022191,2]
[363182133,1748616660995,-514.88,0.00022191,2]
[363182134,1748616661005,-811.71,0.00022191,2]
[363182135,1748616661014,-160.0,0.00022191,2]
[363182136,1748616661023,-420.0,0.00022191,2]
[363182137,1748616661033,-660.41,0.00022191,2]
[363182138,1748616661042,-423.93726375,0.00022191,2]
[363182139,1748616661050,-1204.7,0.00022191,2]
[363182140,1748616661059,-420.0,0.00022191,2]
[363182141,1748616661069,-420.0,0.00022191,2]
[363182142,1748616661077,-420.0,0.00022191,2]
[363182143,1748616661085,-420.0,0.00022191,2]
[363182144,1748616661094,-1265.0,0.00022191,2]
[363182145,1748616661103,-3293.54620311,0.00022191,2]
[363182146,1748616661112,-518.21,0.00022191,2]
[363182147,1748616661120,-160.0,0.00022191,2]
[363182148,1748616661128,-420.0,0.00022191,2]
[363182149,1748616661137,-420.0,0.00022191,2]
[363182150,1748616661146,-444.0,0.00022191,2]
[363182151,1748616661154,-420.0,0.00022191,2]
[363182152,1748616661163,-420.0,0.00022191,2]
[363182153,1748616661171,-151.0,0.00022191,7]
[363182154,1748616661182,-151.0,0.00022191,7]
[363182155,1748616661191,-462.71,0.00022191,2]
[363182156,1748616661200,-151.0,0.00022191,7]
[363182157,1748616661210,-500.0,0.00022191,2]
[363182158,1748616661219,-420.0,0.00022191,2]
[363182159,1748616661228,-420.0,0.00022191,2]
[363182160,1748616661237,-420.0,0.00022191,2]
[363182161,1748616661247,-420.0,0.00022191,2]
[363182162,1748616661256,-420.0,0.00022191,2]
[363182163,1748616661266,-420.0,0.00022191,2]
[363182164,1748616661275,-423.83649276,0.00022191,2]
[363182165,1748616661285,-420.0,0.00022191,2]
[363182166,1748616661295,-468.02,0.00022191,2]
[363182167,1748616661304,-420.0,0.00022191,2]
[363182168,1748616661314,-424.2585971,0.00022191,2]
[363182169,1748616661323,-429.89878661,0.00022191,2]
[363182170,1748616661334,-420.0,0.00022191,2]
[363182171,1748616661343,-245.283705,0.00022191,7]
[363182172,1748616661353,-245.283705,0.00022191,7]
[363182173,1748616661362,-420.0,0.00022191,2]
[363182174,1748616661371,-500.0,0.00022191,2]
[363182175,1748616661381,-245.283705,0.00022191,7]
[363182176,1748616661390,-245.283705,0.00022191,7]
[363182177,1748616661398,-420.0,0.00022191,2]
[363182178,1748616661406,-420.0,0.00022191,2]
[363182179,1748616661415,-500.0,0.00022191,2]
[363182180,1748616661424,-500.0,0.00022191,2]
[363182181,1748616661435,-655.85,0.00022191,2]
[363182182,1748616661445,-196.06,0.00022191,2]
[363182183,1748616661454,-500.0,0.00022191,2]
[363182184,1748616661463,-420.0,0.00022191,2]
[363182185,1748616661472,-151.0,0.00022191,7]
[363182186,1748616661481,-151.0,0.00022191,7]
[363182187,1748616661491,-541.14,0.00022191,2]
[363182188,1748616661501,-500.0,0.00022191,2]
[363182189,1748616661510,-506.81313467,0.00022191,2]
[363182190,1748616661519,-420.0,0.00022191,2]
[363182191,1748616661529,-456.11,0.00022191,2]
[363182192,1748616661538,-512.93,0.00022191,2]
[363182193,1748616661548,-420.0,0.00022191,2]
[363182194,1748616661557,-431.76,0.00022191,2]
[363182195,1748616661567,-493.86601578,0.00022191,2]
[363182196,1748616661576,-420.0,0.00022191,2]
[363182197,1748616661586,-420.0,0.00022191,2]
[363182198,1748616661595,-420.0,0.00022191,2]
[363182199,1748616661605,-420.0,0.00022191,2]
[363182200,1748616661615,-434.34,0.00022191,2]
[363182201,1748616661624,-420.0,0.00022191,2]
[363182202,1748616661633,-539.63260274,0.00022191,2]
[363182203,1748616661643,-312.28191678,0.00022191,2]
[363182204,1748616661652,-420.0,0.00022191,2]
[363182205,1748616661662,-500.0,0.00022191,2]
[363182206,1748616661672,-151.0,0.00022191,7]
[363182207,1748616661683,-151.0,0.00022191,7]
[363182208,1748616661693,-470.65412982,0.00022191,2]
[363182209,1748616661702,-420.0,0.00022191,2]
[363182210,1748616661712,-420.0,0.00022191,2]
[363182211,1748616661721,-215.345119,0.00022191,7]
[363182212,1748616661731,-275.77848789,0.00022191,2]
[363182213,1748616661741,-420.0,0.00022191,2]
[363182214,1748616661750,-420.0,0.00022191,2]
[363182215,1748616661760,-420.0,0.00022191,2]
[363182216,1748616661770,-420.0,0.00022191,2]
[363182217,1748616661779,-420.0,0.00022191,2]
[363182218,1748616661789,-280.66627612,0.00022191,2]
[363182219,1748616661798,-1964.86,0.00022191,2]
[363182220,1748616661808,-420.0,0.00022191,2]
[363182221,1748616661818,-515.79,0.00022191,2]
[363182222,1748616661828,-420.0,0.00022191,2]
[363182223,1748616661837,-420.0,0.00022191,2]
[363182224,1748616661847,-609.53,0.00022191,2]
[363182225,1748616661857,-420.0,0.00022191,2]
[363182226,1748616661866,-599.24,0.00022191,2]
[363182227,1748616661875,-452.79,0.00022191,2]
[363182228,1748616661885,-420.0,0.00022191,2]
[363182229,1748616661895,-420.0,0.00022191,2]
[363182230,1748616661905,-420.0,0.00022191,2]
[363182231,1748616661914,-878.44,0.00022191,2]
[363182232,1748616661924,-420.0,0.00022191,2]
[363182233,1748616661935,-617.27,0.00022191,2]
[363182234,1748616661945,-420.0,0.00022191,2]
[363182235,1748616661955,-420.0,0.00022191,2]
[363182236,1748616661968,-420.0,0.00022191,2]
[363182237,1748616661977,-425.29794524,0.00022191,2]
[363182238,1748616661987,-500.0,0.00022191,2]
[363182239,1748616661996,-420.0,0.00022191,2]
[363182240,1748616662006,-420.0,0.00022191,2]
[363182241,1748616662016,-422.71,0.00022191,2]
[363182242,1748616662025,-516.68,0.00022191,2]
[363182243,1748616662035,-807.7,0.00022191,2]
[363182244,1748616662044,-151.0,0.00022191,7]
[363182245,1748616662054,-241.51136,0.00022191,7]
[363182246,1748616662063,-420.0,0.00022191,2]
[363182247,1748616662073,-420.0,0.00022191,2]
[363182248,1748616662082,-420.0,0.00022191,2]
[363182249,1748616662092,-506.84121239,0.00022191,2]
[363182250,1748616662102,-420.0,0.00022191,2]
[363182251,1748616662111,-420.0,0.00022191,2]
[363182252,1748616662121,-420.0,0.00022191,2]
[363182253,1748616662130,-638.07,0.00022191,2]
[363182254,1748616662139,-420.0,0.00022191,2]
[363182255,1748616662148,-151.0,0.00022191,7]
[363182256,1748616662158,-151.0,0.00022191,7]
[363182257,1748616662167,-420.0,0.00022191,2]
[363182258,1748616662178,-420.0,0.00022191,2]
[363182259,1748616662188,-420.0,0.00022191,2]
[363182260,1748616662197,-420.0,0.00022191,2]
[363182261,1748616662207,-420.0,0.00022191,2]
[363182262,1748616662216,-464.68,0.00022191,2]
[363182263,1748616662225,-420.0,0.00022191,2]
[363182264,1748616662235,-505.68514956,0.00022191,2]
[363182265,1748616662244,-420.0,0.00022191,2]
[363182266,1748616662254,-500.0,0.00022191,2]
[363182267,1748616662263,-420.0,0.00022191,2]
[363182268,1748616662272,-420.0,0.00022191,2]
[363182269,1748616662281,-702.01,0.00022191,2]
[363182270,1748616662290,-420.0,0.00022191,2]
[363182271,1748616662299,-1056.99,0.00022191,2]
[363182272,1748616662307,-426.02427588,0.00022191,2]
[363182273,1748616662316,-1226.93,0.00022191,2]
[363182274,1748616662326,-420.0,0.00022191,2]
[363182275,1748616662335,-500.0,0.00022191,2]
[363182276,1748616662344,-420.0,0.00022191,2]
[363182277,1748616662353,-420.0,0.00022191,2]
[363182278,1748616662362,-420.0,0.00022191,2]
[363182279,1748616662370,-420.0,0.00022191,2]
[363182280,1748616662379,-420.0,0.00022191,2]
[363182281,1748616662388,-550.77119929,0.00022191,2]
[363182282,1748616662397,-523.51,0.00022191,2]
[363182283,1748616662406,-537.45,0.00022191,2]
[363182284,1748616662415,-1186.21,0.00022191,2]
[363182285,1748616662424,-420.0,0.00022191,2]
[363182286,1748616662436,-784.6,0.00022191,2]
[363182287,1748616662445,-420.0,0.00022191,2]
[363182288,1748616662453,-420.0,0.00022191,2]
[363182289,1748616662462,-420.0,0.00022191,2]
[363182290,1748616662470,-668.87,0.00022191,2]
[363182291,1748616662479,-420.0,0.00022191,2]
[363182292,1748616662488,-544.62,0.00022191,2]
[363182293,1748616662497,-906.66,0.00022191,2]
[363182294,1748616662506,-560.0,0.00022191,2]
[363182295,1748616662515,-420.0,0.00022191,2]
[363182296,1748616662523,-1082.4,0.00022191,2]
[363182297,1748616662532,-532.82,0.00022191,2]
[363182298,1748616662541,-434.61,0.00022191,2]
[363182299,1748616662550,-420.0,0.00022191,2]
[363182300,1748616662558,-1150.49,0.00022191,2]
[363182301,1748616662567,-420.0,0.00022191,2]
[363182302,1748616662576,-1785.84,0.00022191,2]
[363182303,1748616662584,-420.0,0.00022191,2]
[363182304,1748616662593,-420.0,0.00022191,2]
[363182305,1748616662601,-405.49802524,0.00022191,2]
[363182306,1748616662610,-493.08579206,0.00022191,2]
[363182307,1748616662618,-423.03340066,0.00022191,2]
[363182308,1748616662627,-420.0,0.00022191,2]
[363182309,1748616662636,-681.14,0.00022191,2]
[363182310,1748616662644,-921.148434,0.00022191,7]
[363182311,1748616662652,-921.148434,0.00022191,7]
[363182312,1748616662661,-637.33,0.00022191,2]
[363182313,1748616662669,-420.0,0.00022191,2]
[363182314,1748616662679,-1303.06,0.00022191,2]
[363182315,1748616662688,-585.51,0.00022191,2]
[363182316,1748616662697,-424.24598421,0.00022191,2]
[363182317,1748616662706,-420.0,0.00022191,2]
[363182318,1748616662716,-420.0,0.00022191,2]
[363182319,1748616662726,-420.0,0.00022191,2]
[363182320,1748616662735,-427.32244974,0.00022191,2]
[363182321,1748616662744,-597.37,0.00022191,2]
[363182322,1748616662752,-420.0,0.00022191,2]
[363182323,1748616662761,-420.0,0.00022191,2]
[363182324,1748616662770,-2265.43,0.00022191,2]
[363182325,1748616662778,-420.0,0.00022191,2]
[363182326,1748616662787,-1071.44,0.00022191,2]
[363182327,1748616662796,-420.0,0.00022191,2]
[363182328,1748616662805,-486.73684758,0.00022191,2]
[363182329,1748616662814,-553.82,0.00022191,2]
[363182330,1748616662823,-1519.55,0.00022191,2]
[363182331,1748616662831,-476.62,0.00022191,2]
[363182332,1748616662837,-560.56913432,0.00022191,2]
[363182333,1748616662844,-420.0,0.00022191,2]
[363182334,1748616662851,-420.0,0.00022191,2]
[363182335,1748616662859,-420.0,0.00022191,2]
[363182336,1748616662866,-420.0,0.00022191,2]
[363182337,1748616662875,-663.74,0.00022191,2]
[363182338,1748616662882,-422.91357896,0.00022191,2]
[363182339,1748616662889,-1068.39,0.00022191,2]
[363182340,1748616662897,-227.52293491,0.00022191,2]
[363182341,1748616662904,-420.0,0.00022191,2]
[363182342,1748616662912,-743.92,0.00022191,2]
[363182343,1748616662919,-420.0,0.00022191,2]
[363182344,1748616662929,-1304.55,0.00022191,2]
[363182345,1748616662939,-495.65,0.00022191,2]
[363182346,1748616662949,-420.0,0.00022191,2]
[363182347,1748616662962,-420.0,0.00022191,2]
[363182348,1748616662970,-420.0,0.00022191,2]
[363182349,1748616662979,-420.0,0.00022191,2]
[363182350,1748616662988,-420.0,0.00022191,2]
[363182351,1748616662998,-151.0,0.00022191,7]
[363182352,1748616663008,-711.43,0.00022191,2]
[363182353,1748616663017,-621.74,0.00022191,2]
[363182354,1748616663027,-420.0,0.00022191,2]
[363182355,1748616663039,-969.66,0.00022191,2]
[363182356,1748616663049,-420.0,0.00022191,2]
[363182357,1748616663058,-420.0,0.00022191,2]
[363182358,1748616663068,-481.832275,0.00022191,2]
[363182359,1748616663078,-820.81,0.00022191,2]
[363182360,1748616663088,-420.0,0.00022191,2]
[363182361,1748616663098,-420.0,0.00022191,2]
[363182362,1748616663108,-420.0,0.00022191,2]
[363182363,1748616663118,-824.2,0.00022191,2]
[363182364,1748616663127,-428.21771995,0.00022191,2]
[363182365,1748616663137,-1539.79,0.00022191,2]
[363182366,1748616663147,-420.0,0.00022191,2]
[363182367,1748616663157,-926.35,0.00022191,2]
[363182368,1748616663166,-782.09,0.00022191,2]
[363182369,1748616663176,-420.0,0.00022191,2]
[363182370,1748616663185,-977.91,0.00022191,2]
[363182371,1748616663374,-762.593395,0.00022191,7]
[363182372,1748616663385,-762.593395,0.00022191,7]
[363182373,1748616663395,-762.593395,0.00022191,7]
[363182374,1748616663405,-151.0,0.00022191,7]
[363182375,1748616663414,-151.0,0.00022191,7]
[363182376,1748616663423,-420.0,0.00022191,2]
[363182377,1748616663438,-501.19,0.00022191,2]
[363182378,1748616663448,-762.593395,0.00022191,7]
[363182379,1748616663458,-762.593395,0.00022191,7]
[363182380,1748616663468,-661.26,0.00022191,2]
[363182381,1748616663478,-762.593395,0.00022191,7]
[363182382,1748616663488,-310.15014505,0.00022191,2]
[363182383,1748616663498,-420.0,0.00022191,2]
[363182384,1748616663507,-420.0,0.00022191,2]
[363182385,1748616663517,-1623.14,0.00022191,2]
[363182386,1748616663526,-423.26,0.00022191,2]
[363182387,1748616663536,-425.80975803,0.00022191,2]
[363182388,1748616663546,-479.43,0.00022191,2]
[363182389,1748616663555,-1439.07,0.00022191,2]
[363182390,1748616663565,-1182.69,0.00022191,2]
[363182391,1748616663575,-420.0,0.00022191,2]
[363182392,1748616663586,-420.0,0.00022191,2]
[363182393,1748616663596,-1205.56,0.00022191,2]
[363182394,1748616663607,-420.0,0.00022191,2]
[363182395,1748616663616,-1485.06,0.00022191,2]
[363182396,1748616663626,-743.94,0.00022191,2]
[363182397,1748616663636,-420.0,0.00022191,2]
[363182398,1748616663646,-420.0,0.00022191,2]
[363182399,1748616663655,-155.852723,0.00022191,7]
[363182400,1748616663665,-513.97,0.00022191,2]
[363182401,1748616663675,-420.0,0.00022191,2]
[363182402,1748616663694,-497.09,0.00022191,2]
[363182403,1748616663703,-420.0,0.00022191,2]
[363182404,1748616663713,-420.0,0.00022191,2]
[363182405,1748616663723,-503.84,0.00022191,2]
[363182406,1748616663732,-420.0,0.00022191,2]
[363182407,1748616663742,-420.0,0.00022191,2]
[363182408,1748616663752,-614.83,0.00022191,2]
[363182409,1748616663761,-420.0,0.00022191,2]
[363182410,1748616663771,-576.82,0.00022191,2]
[363182411,1748616663780,-754.11,0.00022191,2]
[363182412,1748616663788,-429.67,0.00022191,2]
[363182413,1748616663797,-964.182631,0.00022191,7]
[363182414,1748616663806,-964.182631,0.00022191,7]
[363182415,1748616663815,-167.03626169,0.00022191,2]
[363182416,1748616663825,-964.182631,0.00022191,7]
[363182417,1748616663835,-964.182631,0.00022191,7]
[363182418,1748616663844,-806.18,0.00022191,2]
[363182419,1748616663854,-1316.32,0.00022191,2]
[363182420,1748616663863,-170.3644901,0.00022191,2]
[363182421,1748616663873,-900.46,0.00022191,2]
[363182422,1748616663882,-1312.65,0.00022191,2]